[Event "Live Chess"]
[Site "Chess.com"]
[Date "2023.05.21"]
[Round "-"]
[White "TheSmoulderingMaster"]
[Black "KeithArkell"]
[Result "0-1"]
[WhiteElo "1663"]
[BlackElo "2455"]
[TimeControl "300"]
[EndTime "8:31:42 PDT"]
[Termination "KeithArkell won by resignation"]

1. e4 {[%clk 0:04:58.2]} 1... c6 {[%clk 0:04:58.9]} 2. d4 {[%clk 0:04:56.9]}
2... d5 {[%clk 0:04:56.6]} 3. Nd2 {[%clk 0:04:56]} 3... dxe4 {[%clk 0:04:55.1]}
4. Nxe4 {[%clk 0:04:55.3]} 4... Nd7 {[%clk 0:04:52.9]} 5. Nf3 {[%clk 0:04:53.1]}
5... Ngf6 {[%clk 0:04:51.8]} 6. Nxf6+ {[%clk 0:04:51.7]} 6... Nxf6 {[%clk
0:04:51.1]} 7. h3 {[%clk 0:04:48.9]} 7... Bf5 {[%clk 0:04:49.5]} 8. c3 {[%clk
0:04:46.4]} 8... e6 {[%clk 0:04:06.9]} 9. Bd3 {[%clk 0:04:39.6]} 9... Bxd3
{[%clk 0:04:05.6]} 10. Qxd3 {[%clk 0:04:38.2]} 10... Be7 {[%clk 0:04:05.5]} 11.
O-O {[%clk 0:04:35.8]} 11... O-O {[%clk 0:04:05.4]} 12. Ne5 {[%clk 0:04:31.4]}
12... Nd7 {[%clk 0:04:04.1]} 13. Nxd7 {[%clk 0:04:29.5]} 13... Qxd7 {[%clk
0:04:03.4]} 14. Bf4 {[%clk 0:04:25.2]} 14... c5 {[%clk 0:04:01.6]} 15. Be3
{[%clk 0:04:22.1]} 15... Bf6 {[%clk 0:03:58.7]} 16. Rfd1 {[%clk 0:04:18.1]}
16... Rfd8 {[%clk 0:03:57.5]} 17. Qe4 {[%clk 0:04:14.7]} 17... cxd4 {[%clk
0:03:52]} 18. Bxd4 {[%clk 0:04:12.7]} 18... Bxd4 {[%clk 0:03:50.4]} 19. cxd4
{[%clk 0:04:10.5]} 19... Qd5 {[%clk 0:03:47.9]} 20. Qxd5 {[%clk 0:04:08.8]}
20... Rxd5 {[%clk 0:03:46.5]} 21. Rac1 {[%clk 0:04:02.7]} 21... Rd7 {[%clk
0:03:45.3]} 22. Rc4 {[%clk 0:03:56.3]} 22... Rad8 {[%clk 0:03:44.1]} 23. f3
{[%clk 0:03:53.2]} 23... g5 {[%clk 0:03:43.1]} 24. Kh2 {[%clk 0:03:50]} 24...
Kg7 {[%clk 0:03:34]} 25. Ra4 {[%clk 0:03:22.6]} 25... a6 {[%clk 0:03:32.4]} 26.
Kg3 {[%clk 0:03:15.1]} 26... Kg6 {[%clk 0:03:21.7]} 27. a3 {[%clk 0:03:02.9]}
27... h5 {[%clk 0:03:19.6]} 28. Kf2 {[%clk 0:03:00.8]} 28... h4 {[%clk
0:03:18.4]} 29. Ke3 {[%clk 0:02:58.8]} 29... Rd5 {[%clk 0:03:16.1]} 30. Rb4
{[%clk 0:02:54.7]} 30... b5 {[%clk 0:03:14.5]} 31. a4 {[%clk 0:02:53]} 31... Kf5
{[%clk 0:03:13]} 32. axb5 {[%clk 0:02:51.7]} 32... axb5 {[%clk 0:03:01.9]} 33.
Ra1 {[%clk 0:02:46.5]} 33... Rc8 {[%clk 0:02:54.9]} 34. Rd1 {[%clk 0:02:36.9]}
34... Rc2 {[%clk 0:02:51.4]} 35. Rd2 {[%clk 0:02:30.3]} 35... Rxd2 {[%clk
0:02:48.6]} 36. Kxd2 {[%clk 0:02:29.4]} 36... Kf4 {[%clk 0:02:48.1]} 37. Ke2
{[%clk 0:02:24.9]} 37... Kg3 {[%clk 0:02:46.9]} 38. Kf1 {[%clk 0:02:24.1]} 38...
f5 {[%clk 0:02:35.2]} 39. Kg1 {[%clk 0:02:21.2]} 39... e5 {[%clk 0:02:33.3]} 40.
Kf1 {[%clk 0:02:15.8]} 40... exd4 {[%clk 0:02:30]} 41. Rb3 {[%clk 0:02:12.5]}
41... d3 {[%clk 0:02:28.1]} 42. Ke1 {[%clk 0:02:06.8]} 42... Kxg2 {[%clk
0:02:27.3]} 0-1

[Event "Live Chess"]
[Site "Chess.com"]
[Date "2023.05.21"]
[Round "-"]
[White "AttackingSnowLeopard"]
[Black "Crowded_House"]
[Result "1-0"]
[WhiteElo "2166"]
[BlackElo "1616"]
[TimeControl "300"]
[EndTime "8:31:48 PDT"]
[Termination "AttackingSnowLeopard won by resignation"]

1. d4 {[%clk 0:04:57.5]} 1... e6 {[%clk 0:04:58.5]} 2. c4 {[%clk 0:04:56.4]}
2... d5 {[%clk 0:04:57.3]} 3. Nf3 {[%clk 0:04:55.5]} 3... c6 {[%clk 0:04:54.9]}
4. e3 {[%clk 0:04:54]} 4... Nf6 {[%clk 0:04:51.2]} 5. Nc3 {[%clk 0:04:52.8]}
5... Bd6 {[%clk 0:04:48.9]} 6. Qc2 {[%clk 0:04:50.8]} 6... Nbd7 {[%clk
0:04:46.3]} 7. b3 {[%clk 0:04:49.8]} 7... h6 {[%clk 0:04:42.2]} 8. Be2 {[%clk
0:04:47.5]} 8... O-O {[%clk 0:04:40.5]} 9. O-O {[%clk 0:04:47]} 9... Qc7 {[%clk
0:04:39.1]} 10. Bb2 {[%clk 0:04:45.7]} 10... e5 {[%clk 0:04:36.4]} 11. cxd5
{[%clk 0:04:43.4]} 11... cxd5 {[%clk 0:04:32.9]} 12. dxe5 {[%clk 0:04:37.4]}
12... Nxe5 {[%clk 0:04:28.8]} 13. h3 {[%clk 0:04:35.4]} 13... Nxf3+ {[%clk
0:04:25.6]} 14. Bxf3 {[%clk 0:04:33.9]} 14... Be6 {[%clk 0:04:10.5]} 15. Rac1
{[%clk 0:04:31]} 15... Rac8 {[%clk 0:04:08.9]} 16. Qd3 {[%clk 0:04:24.1]} 16...
Qb6 {[%clk 0:03:51.7]} 17. Nxd5 {[%clk 0:04:07.2]} 17... Nxd5 {[%clk 0:03:46.4]}
18. Bxd5 {[%clk 0:04:06.5]} 18... Rxc1 {[%clk 0:03:35]} 19. Rxc1 {[%clk
0:04:02.8]} 19... Bxd5 {[%clk 0:03:32.3]} 20. Qxd5 {[%clk 0:04:01.7]} 20... Be7
{[%clk 0:03:22]} 21. Qd4 {[%clk 0:03:56.8]} 21... Qxd4 {[%clk 0:03:14.7]} 22.
Bxd4 {[%clk 0:03:56.7]} 22... Rb8 {[%clk 0:02:57.6]} 23. a4 {[%clk 0:03:53.2]}
23... b6 {[%clk 0:02:54.2]} 24. Rc7 {[%clk 0:03:51.4]} 24... Bc5 {[%clk
0:02:26.1]} 25. Rxa7 {[%clk 0:03:47]} 25... Bxd4 {[%clk 0:02:20.7]} 26. exd4
{[%clk 0:03:46.9]} 26... b5 {[%clk 0:02:20]} 27. a5 {[%clk 0:03:45.9]} 27... Rd8
{[%clk 0:02:17.3]} 28. Rb7 {[%clk 0:03:44.5]} 28... Rxd4 {[%clk 0:02:12.1]} 29.
Rxb5 {[%clk 0:03:43.9]} 29... Rd1+ {[%clk 0:02:09.9]} 30. Kh2 {[%clk 0:03:41.9]}
30... Ra1 {[%clk 0:02:09.5]} 31. b4 {[%clk 0:03:41.3]} 31... Ra2 {[%clk
0:02:07.9]} 32. Kg3 {[%clk 0:03:39.4]} 32... Ra3+ {[%clk 0:02:06.2]} 33. f3
{[%clk 0:03:38.1]} 33... Kf8 {[%clk 0:02:05.2]} 34. Rb6 {[%clk 0:03:36.8]} 34...
Ra4 {[%clk 0:02:02.2]} 35. a6 {[%clk 0:03:34.9]} 35... Ke7 {[%clk 0:01:59.6]}
36. b5 {[%clk 0:03:33.4]} 36... Kd7 {[%clk 0:01:57.8]} 37. Rb7+ {[%clk
0:03:32.6]} 37... Kc8 {[%clk 0:01:55.1]} 38. Rxf7 {[%clk 0:03:31.6]} 38... Rb4
{[%clk 0:01:47.8]} 39. a7 {[%clk 0:03:27.9]} 39... Ra4 {[%clk 0:01:44.7]} 40. b6
{[%clk 0:03:26.3]} 1-0

[Event "Live Chess"]
[Site "Chess.com"]
[Date "2023.05.21"]
[Round "-"]
[White "Ian-Morley"]
[Black "romchyk1219"]
[Result "1/2-1/2"]
[WhiteElo "1103"]
[BlackElo "670"]
[TimeControl "300"]
[EndTime "8:31:56 PDT"]
[Termination "Game drawn - timeout vs insufficient material"]

1. d4 {[%clk 0:04:58.4]} 1... Nf6 {[%clk 0:04:57.3]} 2. b3 {[%clk 0:04:57.7]}
2... g6 {[%clk 0:04:55]} 3. Bb2 {[%clk 0:04:56.9]} 3... Bg7 {[%clk 0:04:50.8]}
4. e3 {[%clk 0:04:46.3]} 4... d5 {[%clk 0:04:44.9]} 5. Bb5+ {[%clk 0:04:38.1]}
5... c6 {[%clk 0:04:41.4]} 6. Bd3 {[%clk 0:04:37.2]} 6... O-O {[%clk 0:04:36.3]}
7. Nd2 {[%clk 0:04:36.3]} 7... Nbd7 {[%clk 0:04:22.4]} 8. h4 {[%clk 0:04:34.6]}
8... Nb6 {[%clk 0:04:19.6]} 9. g4 {[%clk 0:04:30.3]} 9... Re8 {[%clk 0:04:15.5]}
10. g5 {[%clk 0:04:29.6]} 10... Nfd7 {[%clk 0:03:59.2]} 11. f4 {[%clk
0:04:21.2]} 11... Nf8 {[%clk 0:03:56.9]} 12. h5 {[%clk 0:04:16.9]} 12... gxh5
{[%clk 0:03:52.9]} 13. Qxh5 {[%clk 0:04:15]} 13... f6 {[%clk 0:03:31.8]} 14.
Bxh7+ {[%clk 0:04:12.2]} 14... Nxh7 {[%clk 0:03:29.4]} 15. Qxh7+ {[%clk
0:04:11]} 15... Kf7 {[%clk 0:03:27.3]} 16. g6+ {[%clk 0:04:10.2]} 16... Ke6
{[%clk 0:03:23.2]} 17. f5+ {[%clk 0:04:08]} 17... Kxf5 {[%clk 0:03:18.1]} 18.
Rh5+ {[%clk 0:04:02]} 18... Kg4 {[%clk 0:03:16.9]} 19. Qxg7 {[%clk 0:03:52.9]}
19... Rg8 {[%clk 0:03:13.6]} 20. Qh6 {[%clk 0:03:44.2]} 20... Bf5 {[%clk
0:02:56.9]} 21. Rh4+ {[%clk 0:03:41.3]} 21... Kg3 {[%clk 0:02:49.6]} 22. Qf4+
{[%clk 0:03:39.7]} 22... Kg2 {[%clk 0:02:45.9]} 23. Qf1+ {[%clk 0:03:37]} 23...
Kg3 {[%clk 0:02:42.2]} 24. Qf3+ {[%clk 0:03:32.9]} 24... Kxh4 {[%clk 0:02:39.6]}
25. O-O-O {[%clk 0:03:28.1]} 25... Bg4 {[%clk 0:02:29.3]} 26. Qf2+ {[%clk
0:03:25.2]} 26... Kg5 {[%clk 0:02:26.4]} 27. Ndf3+ {[%clk 0:03:24]} 27... Bxf3
{[%clk 0:02:24.6]} 28. Qxf3 {[%clk 0:03:20.9]} 28... Kxg6 {[%clk 0:02:23.2]} 29.
Nh3 {[%clk 0:03:19.2]} 29... Kf7 {[%clk 0:02:21.1]} 30. Rg1 {[%clk 0:03:14.9]}
30... Rxg1+ {[%clk 0:02:17.8]} 31. Nxg1 {[%clk 0:03:13.9]} 31... Qd6 {[%clk
0:02:13.6]} 32. Qh5+ {[%clk 0:03:12.7]} 32... Ke6 {[%clk 0:02:11.3]} 33. c4
{[%clk 0:03:06.1]} 33... Kd7 {[%clk 0:02:01.8]} 34. cxd5 {[%clk 0:03:02.8]}
34... cxd5 {[%clk 0:01:58.5]} 35. Qf5+ {[%clk 0:03:01.5]} 35... Kc7 {[%clk
0:01:55.3]} 36. Nf3 {[%clk 0:02:52.9]} 36... Rc8 {[%clk 0:01:54.2]} 37. Kd2
{[%clk 0:02:51.1]} 37... Kb8 {[%clk 0:01:52.8]} 38. Bc1 {[%clk 0:02:43.6]} 38...
Qb4+ {[%clk 0:01:51]} 39. Kd3 {[%clk 0:02:42.4]} 39... Qc3+ {[%clk 0:01:37.9]}
40. Ke2 {[%clk 0:02:40.5]} 40... Qxc1 {[%clk 0:01:32.3]} 41. Qf4+ {[%clk
0:02:38]} 41... Qc7 {[%clk 0:01:25.8]} 42. Nh4 {[%clk 0:02:26.2]} 42... Qxf4
{[%clk 0:01:21.5]} 43. exf4 {[%clk 0:02:19.3]} 43... Rc2+ {[%clk 0:01:21.4]} 44.
Kd3 {[%clk 0:02:17.1]} 44... Rxa2 {[%clk 0:01:19.7]} 45. Nf5 {[%clk 0:02:15.8]}
45... e6 {[%clk 0:01:10.1]} 46. Nd6 {[%clk 0:02:13.3]} 46... Ra3 {[%clk
0:01:04.5]} 47. Kc2 {[%clk 0:02:08.3]} 47... Ra2+ {[%clk 0:00:56.6]} 48. Kc3
{[%clk 0:02:07.1]} 48... Re2 {[%clk 0:00:54.4]} 49. f5 {[%clk 0:02:05.1]} 49...
exf5 {[%clk 0:00:50.5]} 50. Nxf5 {[%clk 0:02:03]} 50... a5 {[%clk 0:00:38.7]}
51. Nd6 {[%clk 0:01:59.7]} 51... a4 {[%clk 0:00:36.4]} 52. bxa4 {[%clk
0:01:57.7]} 52... Nxa4+ {[%clk 0:00:31.5]} 53. Kd3 {[%clk 0:01:57.1]} 53... Re6
{[%clk 0:00:26.9]} 54. Nb5 {[%clk 0:01:54.1]} 54... b6 {[%clk 0:00:24.9]} 55.
Na3 {[%clk 0:01:51.3]} 55... Nb2+ {[%clk 0:00:19.3]} 56. Kd2 {[%clk 0:01:48.1]}
56... Na4 {[%clk 0:00:17.7]} 57. Nb5 {[%clk 0:01:46.2]} 57... Rc6 {[%clk
0:00:13.1]} 58. Ke1 {[%clk 0:01:40.1]} 58... Rc4 {[%clk 0:00:11.9]} 59. Nd6
{[%clk 0:01:38]} 59... Rxd4 {[%clk 0:00:10]} 60. Nf5 {[%clk 0:01:36.1]} 60... b5
{[%clk 0:00:06]} 61. Nxd4 {[%clk 0:01:34.5]} 61... b4 {[%clk 0:00:05.9]} 62. Nb3
{[%clk 0:01:32.9]} 1/2-1/2

[Event "Live Chess"]
[Site "Chess.com"]
[Date "2023.05.21"]
[Round "-"]
[White "WelshTiger"]
[Black "LiamClery2020"]
[Result "0-1"]
[WhiteElo "2321"]
[BlackElo "2010"]
[TimeControl "300"]
[EndTime "8:32:06 PDT"]
[Termination "LiamClery2020 won by resignation"]

1. e4 {[%clk 0:04:58.4]} 1... Nf6 {[%clk 0:04:57.1]} 2. e5 {[%clk 0:04:55.5]}
2... Nd5 {[%clk 0:04:56.5]} 3. d4 {[%clk 0:04:54.3]} 3... d6 {[%clk 0:04:56]} 4.
c4 {[%clk 0:04:53.8]} 4... Nb6 {[%clk 0:04:55.6]} 5. f4 {[%clk 0:04:53.4]} 5...
dxe5 {[%clk 0:04:54.5]} 6. fxe5 {[%clk 0:04:52.5]} 6... Nc6 {[%clk 0:04:54.4]}
7. Be3 {[%clk 0:04:50.7]} 7... Bf5 {[%clk 0:04:53.1]} 8. Nc3 {[%clk 0:04:49.2]}
8... e6 {[%clk 0:04:52.5]} 9. Nf3 {[%clk 0:04:48.6]} 9... Be7 {[%clk 0:04:52.1]}
10. d5 {[%clk 0:04:45.8]} 10... exd5 {[%clk 0:04:52]} 11. cxd5 {[%clk
0:04:42.8]} 11... Nb4 {[%clk 0:04:51.4]} 12. Nd4 {[%clk 0:04:42.1]} 12... Bd7
{[%clk 0:04:50.2]} 13. Qf3 {[%clk 0:04:40.9]} 13... O-O {[%clk 0:04:43.2]} 14.
a3 {[%clk 0:04:35]} 14... c5 {[%clk 0:04:41.7]} 15. dxc6 {[%clk 0:04:31.2]}
15... Nxc6 {[%clk 0:04:39]} 16. Nxc6 {[%clk 0:04:16.9]} 16... Bxc6 {[%clk
0:04:37.1]} 17. Qg3 {[%clk 0:04:16.6]} 17... Bh4 {[%clk 0:04:33.4]} 0-1

[Event "Live Chess"]
[Site "Chess.com"]
[Date "2023.05.21"]
[Round "-"]
[White "Tema1107"]
[Black "Conradical12"]
[Result "1-0"]
[WhiteElo "1958"]
[BlackElo "1514"]
[TimeControl "300"]
[EndTime "8:32:12 PDT"]
[Termination "Tema1107 won by resignation"]

1. d4 {[%clk 0:04:58.5]} 1... d5 {[%clk 0:04:57]} 2. Nf3 {[%clk 0:04:56.8]} 2...
Nc6 {[%clk 0:04:56]} 3. c4 {[%clk 0:04:53.9]} 3... Nf6 {[%clk 0:04:48.5]} 4. Nc3
{[%clk 0:04:45.8]} 4... Bf5 {[%clk 0:04:47.5]} 5. cxd5 {[%clk 0:04:36.8]} 5...
Nb4 {[%clk 0:04:47]} 6. Qa4+ {[%clk 0:04:29.6]} 6... c6 {[%clk 0:04:44.3]} 7.
Qxb4 {[%clk 0:04:28.5]} 7... e5 {[%clk 0:04:41.2]} 8. Qxb7 {[%clk 0:04:24.8]}
8... Qd7 {[%clk 0:04:34.1]} 9. Qxa8+ {[%clk 0:04:18.5]} 9... Ke7 {[%clk
0:04:34]} 10. Nxe5 {[%clk 0:04:14.7]} 10... Qd6 {[%clk 0:04:32.5]} 11. Nxc6+
{[%clk 0:04:11.4]} 1-0

[Event "Live Chess"]
[Site "Chess.com"]
[Date "2023.05.21"]
[Round "-"]
[White "jagbama"]
[Black "DRS44"]
[Result "1-0"]
[WhiteElo "1202"]
[BlackElo "1222"]
[TimeControl "300"]
[EndTime "8:32:22 PDT"]
[Termination "jagbama won by resignation"]

1. e4 {[%clk 0:04:58.9]} 1... e5 {[%clk 0:04:36.9]} 2. Nf3 {[%clk 0:04:57.5]}
2... d5 {[%clk 0:04:28.3]} 3. exd5 {[%clk 0:04:53.4]} 3... Bd6 {[%clk
0:04:24.5]} 4. Nc3 {[%clk 0:04:50]} 4... Nf6 {[%clk 0:04:19.9]} 5. Bc4 {[%clk
0:04:38]} 5... e4 {[%clk 0:04:11.5]} 6. Ng5 {[%clk 0:04:15.3]} 6... Bg4 {[%clk
0:03:57.6]} 7. f3 {[%clk 0:04:06.7]} 7... exf3 {[%clk 0:03:52.5]} 8. gxf3 {[%clk
0:04:04.2]} 8... Qe7+ {[%clk 0:03:47.3]} 9. Qe2 {[%clk 0:04:02.7]} 9... O-O
{[%clk 0:03:40.2]} 10. fxg4 {[%clk 0:03:42.2]} 10... Na6 {[%clk 0:03:21.1]} 11.
Qxe7 {[%clk 0:03:33.3]} 11... Bxe7 {[%clk 0:03:16.5]} 12. d3 {[%clk 0:03:23.9]}
12... Rae8 {[%clk 0:03:10.8]} 13. Bd2 {[%clk 0:03:12.9]} 13... Nxg4 {[%clk
0:03:04.7]} 14. Nge4 {[%clk 0:02:59.8]} 14... f5 {[%clk 0:02:52.7]} 15. d6+
{[%clk 0:02:52.7]} 15... Kh8 {[%clk 0:02:42.5]} 16. dxe7 {[%clk 0:02:46.4]}
16... Rxe7 {[%clk 0:02:33.9]} 17. O-O-O {[%clk 0:02:40.8]} 17... fxe4 {[%clk
0:02:28.7]} 18. Nxe4 {[%clk 0:02:39.7]} 18... Nf2 {[%clk 0:02:18.1]} 19. Nxf2
{[%clk 0:02:32.8]} 19... Rxf2 {[%clk 0:02:13.9]} 20. Rde1 {[%clk 0:02:26]} 20...
Ref7 {[%clk 0:01:57.3]} 21. Bxf7 {[%clk 0:02:20.4]} 1-0

[Event "Live Chess"]
[Site "Chess.com"]
[Date "2023.05.21"]
[Round "-"]
[White "FlyingChessKestrel13"]
[Black "onemoretime1975"]
[Result "1-0"]
[WhiteElo "2066"]
[BlackElo "1834"]
[TimeControl "300"]
[EndTime "8:32:22 PDT"]
[Termination "FlyingChessKestrel13 won by resignation"]

1. e4 {[%clk 0:04:58.4]} 1... e6 {[%clk 0:04:58.9]} 2. d4 {[%clk 0:04:56.7]}
2... d5 {[%clk 0:04:57.8]} 3. exd5 {[%clk 0:04:56.1]} 3... exd5 {[%clk 0:04:56]}
4. c4 {[%clk 0:04:55.7]} 4... c6 {[%clk 0:04:50.1]} 5. Nc3 {[%clk 0:04:54.6]}
5... Nf6 {[%clk 0:04:48.2]} 6. Bd3 {[%clk 0:04:52.7]} 6... dxc4 {[%clk
0:04:45.6]} 7. Bxc4 {[%clk 0:04:51.4]} 7... Be7 {[%clk 0:04:43.8]} 8. Nge2
{[%clk 0:04:50.5]} 8... O-O {[%clk 0:04:42.5]} 9. O-O {[%clk 0:04:50.2]} 9...
Nbd7 {[%clk 0:04:40.1]} 10. a4 {[%clk 0:04:47.4]} 10... Nb6 {[%clk 0:04:38.7]}
11. Ba2 {[%clk 0:04:46.4]} 11... Nbd5 {[%clk 0:04:37.5]} 12. Nxd5 {[%clk
0:04:44.8]} 12... Nxd5 {[%clk 0:04:33.4]} 13. Nc3 {[%clk 0:04:44.2]} 13... Be6
{[%clk 0:04:31.8]} 14. f4 {[%clk 0:04:41.9]} 14... Nxc3 {[%clk 0:04:29.2]} 15.
bxc3 {[%clk 0:04:40.5]} 15... Bxa2 {[%clk 0:04:27.7]} 16. Rxa2 {[%clk
0:04:39.5]} 16... Qd5 {[%clk 0:04:25.4]} 17. Raf2 {[%clk 0:04:37.8]} 17... f5
{[%clk 0:04:22.8]} 18. Re2 {[%clk 0:04:35.5]} 18... Bf6 {[%clk 0:04:21]} 19.
Rfe1 {[%clk 0:04:32.8]} 19... Kf7 {[%clk 0:04:18.8]} 20. Ba3 {[%clk 0:04:29.8]}
20... Rfe8 {[%clk 0:04:16.4]} 21. Rxe8 {[%clk 0:04:28.8]} 21... Rxe8 {[%clk
0:04:14.8]} 22. Rxe8 {[%clk 0:04:28.4]} 22... Kxe8 {[%clk 0:04:13]} 23. Qe2+
{[%clk 0:04:28]} 23... Kf7 {[%clk 0:04:09.9]} 24. g3 {[%clk 0:04:25.1]} 24...
Qe4 {[%clk 0:04:07.4]} 25. Qxe4 {[%clk 0:04:23.7]} 25... fxe4 {[%clk 0:04:05.8]}
26. Kf2 {[%clk 0:04:23.4]} 26... b5 {[%clk 0:04:03.2]} 27. axb5 {[%clk
0:04:21.3]} 27... cxb5 {[%clk 0:04:01.2]} 28. Ke3 {[%clk 0:04:21]} 28... Ke6
{[%clk 0:03:59.4]} 29. Kxe4 {[%clk 0:04:20.1]} 29... a5 {[%clk 0:03:57]} 30. d5+
{[%clk 0:04:17.5]} 30... Kd7 {[%clk 0:03:53.5]} 31. Kd3 {[%clk 0:04:15.6]} 31...
Be7 {[%clk 0:03:42.8]} 32. Bc1 {[%clk 0:04:13.3]} 32... Kd6 {[%clk 0:03:30.4]}
33. Ba3+ {[%clk 0:04:11.6]} 33... Kd7 {[%clk 0:03:29.2]} 34. Bb2 {[%clk
0:04:04.2]} 34... Kd6 {[%clk 0:03:27.4]} 35. c4 {[%clk 0:04:03.5]} 35... Kc5
{[%clk 0:03:22]} 36. cxb5 {[%clk 0:04:01.5]} 36... Kxb5 {[%clk 0:03:20.6]} 37.
Bxg7 {[%clk 0:03:59.6]} 37... a4 {[%clk 0:03:18.9]} 38. Be5 {[%clk 0:03:55.2]}
38... Kc5 {[%clk 0:03:15.5]} 39. Ke4 {[%clk 0:03:53.3]} 39... a3 {[%clk
0:03:11.7]} 40. f5 {[%clk 0:03:51.8]} 40... a2 {[%clk 0:03:09.1]} 41. f6 {[%clk
0:03:50.4]} 41... Bf8 {[%clk 0:03:06.4]} 42. g4 {[%clk 0:03:46.5]} 42... Kc4
{[%clk 0:03:02.3]} 43. h4 {[%clk 0:03:44.4]} 43... Bb4 {[%clk 0:03:00.8]} 44. f7
{[%clk 0:03:41.5]} 44... Bc3 {[%clk 0:02:59.6]} 45. Bxc3 {[%clk 0:03:40]} 45...
Kxc3 {[%clk 0:02:58.7]} 46. f8=Q {[%clk 0:03:39.3]} 46... a1=Q {[%clk
0:02:57.1]} 47. Qg7+ {[%clk 0:03:38.8]} 1-0

[Event "Live Chess"]
[Site "Chess.com"]
[Date "2023.05.21"]
[Round "-"]
[White "viktorskliarov"]
[Black "Ed_Knox"]
[Result "1-0"]
[WhiteElo "2634"]
[BlackElo "1475"]
[TimeControl "300"]
[EndTime "8:32:26 PDT"]
[Termination "viktorskliarov won by checkmate"]

1. e4 {[%clk 0:04:57.8]} 1... d5 {[%clk 0:04:58.4]} 2. exd5 {[%clk 0:04:54.1]}
2... Qxd5 {[%clk 0:04:57.5]} 3. Nc3 {[%clk 0:04:53.7]} 3... Qd8 {[%clk
0:04:56.6]} 4. d4 {[%clk 0:04:53.1]} 4... c6 {[%clk 0:04:55.8]} 5. Bc4 {[%clk
0:04:52.7]} 5... Bf5 {[%clk 0:04:55]} 6. Nf3 {[%clk 0:04:52.1]} 6... e6 {[%clk
0:04:54.1]} 7. Ne5 {[%clk 0:04:50.3]} 7... Nd7 {[%clk 0:04:51.4]} 8. Qe2 {[%clk
0:04:47.6]} 8... Ngf6 {[%clk 0:04:47.6]} 9. O-O {[%clk 0:04:44.6]} 9... Nxe5
{[%clk 0:04:46.2]} 10. dxe5 {[%clk 0:04:42.9]} 10... Nd7 {[%clk 0:04:45.3]} 11.
g4 {[%clk 0:04:38.1]} 11... Bg6 {[%clk 0:04:38.8]} 12. f4 {[%clk 0:04:37]} 12...
h6 {[%clk 0:04:33.1]} 13. f5 {[%clk 0:04:35.4]} 13... exf5 {[%clk 0:04:25.1]}
14. gxf5 {[%clk 0:04:34.3]} 14... Bc5+ {[%clk 0:04:06.9]} 15. Kh1 {[%clk
0:04:32]} 15... O-O {[%clk 0:03:26.2]} 16. fxg6 {[%clk 0:04:28.2]} 16... Kh8
{[%clk 0:03:05.1]} 17. Bxf7 {[%clk 0:04:19.5]} 17... Qh4 {[%clk 0:02:53.7]} 18.
Be3 {[%clk 0:04:15.4]} 18... Nxe5 {[%clk 0:02:31.5]} 19. Bxc5 {[%clk 0:04:12.1]}
19... Rxf7 {[%clk 0:02:03.1]} 20. gxf7 {[%clk 0:04:10.3]} 20... Nd7 {[%clk
0:01:58.7]} 21. f8=Q+ {[%clk 0:04:04.2]} 21... Nxf8 {[%clk 0:01:56.3]} 22. Rxf8+
{[%clk 0:04:04.1]} 22... Rxf8 {[%clk 0:01:54.9]} 23. Bxf8 {[%clk 0:04:04]} 23...
Qd8 {[%clk 0:01:49.8]} 24. Bxg7+ {[%clk 0:04:01.7]} 24... Kxg7 {[%clk
0:01:48.2]} 25. Rg1+ {[%clk 0:04:01.2]} 25... Kh7 {[%clk 0:01:47]} 26. Qe4+
{[%clk 0:03:59.2]} 26... Kh8 {[%clk 0:01:45.2]} 27. Qe5+ {[%clk 0:03:58.5]}
27... Kh7 {[%clk 0:01:42.6]} 28. Qg7# {[%clk 0:03:58.1]} 1-0

[Event "Live Chess"]
[Site "Chess.com"]
[Date "2023.05.21"]
[Round "-"]
[White "Cimon"]
[Black "bedsdrout"]
[Result "0-1"]
[WhiteElo "1835"]
[BlackElo "1843"]
[TimeControl "300"]
[EndTime "8:33:01 PDT"]
[Termination "bedsdrout won by resignation"]

1. Nf3 {[%clk 0:04:57.5]} 1... Nf6 {[%clk 0:04:54.4]} 2. d4 {[%clk 0:04:55.8]}
2... e6 {[%clk 0:04:51.5]} 3. c4 {[%clk 0:04:53.7]} 3... d5 {[%clk 0:04:47]} 4.
g3 {[%clk 0:04:51.5]} 4... Nc6 {[%clk 0:04:44.2]} 5. Bg2 {[%clk 0:04:49.8]} 5...
dxc4 {[%clk 0:04:38.8]} 6. O-O {[%clk 0:04:47]} 6... Bb4 {[%clk 0:04:35.3]} 7.
Bg5 {[%clk 0:04:38.4]} 7... O-O {[%clk 0:04:32.3]} 8. a3 {[%clk 0:04:28.6]} 8...
Be7 {[%clk 0:04:27.7]} 9. Qc2 {[%clk 0:04:09.4]} 9... h6 {[%clk 0:04:25.9]} 10.
Bf4 {[%clk 0:04:05.4]} 10... Bd7 {[%clk 0:04:23.9]} 11. Qxc4 {[%clk 0:04:03.2]}
11... b5 {[%clk 0:04:15.1]} 12. Qc2 {[%clk 0:03:58.5]} 12... b4 {[%clk
0:04:12.3]} 13. Rd1 {[%clk 0:03:44.6]} 13... b3 {[%clk 0:04:09.8]} 14. Qxb3
{[%clk 0:03:36]} 14... g5 {[%clk 0:04:05.5]} 15. Be5 {[%clk 0:03:25.3]} 15... g4
{[%clk 0:04:01.9]} 16. Nfd2 {[%clk 0:03:19.2]} 16... Nd5 {[%clk 0:03:59.5]} 17.
e4 {[%clk 0:03:14]} 17... Nb6 {[%clk 0:03:53.2]} 18. Bf4 {[%clk 0:03:09.1]}
18... Nxd4 {[%clk 0:03:49.8]} 19. Qd3 {[%clk 0:03:03.4]} 19... Bb5 {[%clk
0:03:47.3]} 20. Qe3 {[%clk 0:02:38.8]} 20... Nc2 {[%clk 0:03:38.7]} 21. Qb3
{[%clk 0:02:37.6]} 21... Nxa1 {[%clk 0:03:35.8]} 22. Qxb5 {[%clk 0:02:36.3]}
22... Bg5 {[%clk 0:03:33.5]} 23. Nc3 {[%clk 0:02:21]} 23... Bxf4 {[%clk
0:03:31.3]} 24. gxf4 {[%clk 0:02:19.9]} 24... Nc2 {[%clk 0:03:28.1]} 25. Nc4
{[%clk 0:02:13.6]} 25... Qb8 {[%clk 0:03:24.8]} 26. Qh5 {[%clk 0:02:09.5]} 26...
Nxc4 {[%clk 0:03:21.6]} 27. e5 {[%clk 0:02:02.5]} 27... g3 {[%clk 0:03:17.2]}
28. hxg3 {[%clk 0:01:58.9]} 28... Qxb2 {[%clk 0:03:09.6]} 29. Ne4 {[%clk
0:01:53.7]} 29... Kg7 {[%clk 0:03:06.7]} 30. Nf6 {[%clk 0:01:39.3]} 30... N2e3
{[%clk 0:03:00.6]} 31. fxe3 {[%clk 0:01:32.6]} 31... Nxe3 {[%clk 0:02:57.6]} 32.
Bxa8 {[%clk 0:01:15.3]} 32... Rxa8 {[%clk 0:02:50.2]} 33. Qf3 {[%clk 0:00:54.1]}
33... Nd5 {[%clk 0:02:42.1]} 34. Nxd5 {[%clk 0:00:40.2]} 34... exd5 {[%clk
0:02:39.9]} 35. Qxd5 {[%clk 0:00:39.3]} 35... Re8 {[%clk 0:02:37.3]} 36. Qd7
{[%clk 0:00:25]} 36... Qxa3 {[%clk 0:02:31.3]} 37. Qg4+ {[%clk 0:00:21.1]} 37...
Kh8 {[%clk 0:02:28.8]} 38. Qh5 {[%clk 0:00:18.6]} 38... Qxg3+ {[%clk 0:02:25]}
39. Kf1 {[%clk 0:00:16.5]} 39... Qxf4+ {[%clk 0:02:22.6]} 40. Ke2 {[%clk
0:00:14.7]} 40... Rxe5+ {[%clk 0:02:16.4]} 0-1